bitfinex-derivatives/quotes_BNBF0:USTF0_20250908
["timestamp","ask_amount","ask_price","bid_price","bid_amount"]
[1757367476904,0.65623144,878.83,876.47,2.5526549]
[1757367477204,2.556249,878.81,876.9,0.19781213]
[1757367477502,0.65623144,878.8,876.9,0.19781213]
[1757367477703,0.65623144,878.79,876.9,0.19781213]
[1757367477905,0.65623144,878.78,876.9,0.19781213]
[1757367478202,0.65623144,878.77,876.9,0.19781213]
[1757367478406,0.65623144,878.76,876.9,0.19781213]
[1757367478604,0.65623144,878.75,876.9,0.19781213]
[1757367478806,0.65623144,878.74,876.9,0.19781213]
[1757367479005,0.65623144,878.73,876.9,0.19781213]
[1757367479205,0.65623144,878.72,876.9,0.19781213]
[1757367479404,0.65623144,878.71,876.9,0.19781213]
[1757367479607,0.65623144,878.7,876.9,0.19781213]
[1757367479907,0.65623144,878.69,876.9,0.19781213]
[1757367480106,0.65623144,878.68,876.9,0.19781213]
[1757367480306,0.65623144,878.67,876.9,0.19781213]
[1757367480603,0.65623144,878.66,876.9,0.19781213]
[1757367480804,0.65623144,878.65,876.9,0.19781213]
[1757367481007,0.65623144,878.64,876.9,0.19781213]
[1757367481308,0.65623144,878.63,876.9,0.19781213]
[1757367481506,0.65623144,878.62,876.9,0.19781213]
[1757367481707,0.65623144,878.61,876.9,0.19781213]
[1757367482007,0.65623144,878.6,876.9,0.19781213]
[1757367482208,0.65623144,878.59,876.9,0.19781213]
[1757367482408,0.65623144,878.58,876.9,0.19781213]
[1757367482703,2.556249,878.72,876.9,0.19781213]
[1757367482704,0.65623144,878.57,876.9,0.19781213]
[1757367482908,0.65623144,878.56,876.9,0.19781213]
[1757367483106,0.65623144,878.55,876.9,0.19781213]
[1757367483308,0.65623144,878.54,876.9,0.19781213]
[1757367483507,0.65623144,878.53,876.9,0.19781213]
[1757367483706,0.65623144,878.52,876.9,0.19781213]
[1757367483905,0.65623144,878.51,876.9,0.19781213]
[1757367484109,0.65623144,878.5,876.9,0.19781213]
[1757367484408,0.65623144,878.49,876.9,0.19781213]
[1757367484606,0.65623144,878.48,876.9,0.19781213]
[1757367484803,0.65623144,878.47,876.9,0.19781213]
[1757367485006,0.65623144,878.46,876.9,0.19781213]
[1757367485206,0.65623144,878.45,876.9,0.19781213]
[1757367485409,0.65623144,878.44,876.9,0.19781213]
[1757367485609,3.5875929,879.27,876.9,0.19781213]
[1757367485610,0.65623144,878.43,876.9,0.19781213]
[1757367485810,0.65623144,878.42,876.9,0.19781213]
[1757367486009,0.65623144,878.41,876.9,0.19781213]
[1757367486207,0.65623144,878.4,876.9,0.19781213]
[1757367486410,0.65623144,878.39,876.9,0.19781213]
[1757367486607,0.65623144,878.38,876.9,0.19781213]
[1757367486810,0.65623144,878.37,876.9,0.19781213]
[1757367487010,0.65623144,878.36,876.9,0.19781213]
[1757367487206,0.65623144,878.35,876.9,0.19781213]
[1757367487410,0.65623144,878.34,876.9,0.19781213]
[1757367487711,0.65623144,878.33,876.9,0.19781213]
[1757367487907,0.65623144,878.32,876.9,0.19781213]
[1757367488111,2.556249,879.35,876.9,0.19781213]
[1757367488408,0.65611014,879.34,876.9,0.19781213]
[1757367488607,0.65611014,879.33,876.9,0.19781213]
[1757367488812,0.65611014,879.32,876.9,0.19781213]
[1757367489011,0.65611014,879.31,876.9,0.19781213]
[1757367489212,0.65611014,879.3,876.9,0.19781213]
[1757367489415,0.65611014,879.29,876.9,0.19781213]
[1757367489612,0.65611014,879.28,876.9,0.19781213]
[1757367489809,0.65611014,879.27,876.9,0.19781213]
[1757367490109,0.65611014,879.26,876.9,0.19781213]
[1757367490310,0.65611014,879.25,876.9,0.19781213]
[1757367490611,0.65611014,879.24,876.9,0.19781213]
[1757367490812,0.65611014,879.23,876.9,0.19781213]
[1757367491010,0.65611014,879.22,876.9,0.19781213]
[1757367491216,0.65611014,879.21,876.9,0.19781213]
[1757367491412,0.65611014,879.2,876.9,0.19781213]
[1757367491614,0.65611014,879.19,876.9,0.19781213]
[1757367491810,0.65611014,879.18,876.9,0.19781213]
[1757367492114,0.65611014,879.17,876.9,0.19781213]
[1757367492412,0.65611014,879.16,876.9,0.19781213]
[1757367492711,0.65611014,879.15,876.9,0.19781213]
[1757367492914,0.65611014,879.14,876.9,0.19781213]
[1757367493111,0.65611014,879.13,876.9,0.19781213]
[1757367493414,0.65611014,879.12,876.9,0.19781213]
[1757367493615,0.65611014,879.11,876.9,0.19781213]
[1757367493812,0.65611014,879.1,876.9,0.19781213]
[1757367494018,1.5320134,878.44,876.9,0.19781213]
[1757367494314,0.65611014,878.43,876.9,0.19781213]
[1757367494512,0.65611014,878.42,876.9,0.19781213]
[1757367494715,0.65611014,878.41,876.9,0.19781213]
[1757367495010,2.18812354,878.4,876.9,0.19781213]
[1757367495215,1.5320134,878.33,876.9,0.19781213]
[1757367498821,1.5320134,878.35,876.9,0.19781213]
[1757367499022,0.65609361,878.34,876.9,0.19781213]
[1757367499216,0.65609361,878.33,876.9,0.19781213]
[1757367499422,1.5320134,878.35,876.9,0.19781213]
[1757367499721,2.18810164,878.34,876.9,0.19781213]
[1757367499918,0.65608824,878.33,876.9,0.19781213]
[1757367500122,1.5320134,878.34,876.9,0.19781213]
[1757367500319,0.65608918,878.33,876.9,0.19781213]
[1757367500522,1.5320134,878.38,876.9,0.19781213]
[1757367500721,0.65608362,878.37,876.9,0.19781213]
[1757367501020,0.65608362,878.36,876.9,0.19781213]
[1757367501221,0.65608362,878.35,876.9,0.19781213]
[1757367501423,0.65608362,878.34,876.9,0.19781213]
[1757367501619,0.65608362,878.33,876.9,0.19781213]
[1757367501818,1.5320134,878.37,876.9,0.19781213]
[1757367502019,0.65607961,878.36,876.9,0.19781213]
[1757367502221,0.65607961,878.35,876.9,0.19781213]
[1757367502519,0.65607961,878.34,876.9,0.19781213]
[1757367502819,0.65607961,878.33,876.9,0.19781213]
[1757367503019,1.5320134,878.38,876.9,0.19781213]
[1757367503223,0.65607759,878.37,876.9,0.19781213]
[1757367503419,0.65607759,878.36,876.9,0.19781213]
[1757367503623,0.65607759,878.35,876.9,0.19781213]
[1757367503820,0.65607759,878.34,876.9,0.19781213]
[1757367504023,1.5320134,878.41,876.9,0.19781213]
[1757367504221,0.65606071,878.4,876.9,0.19781213]
[1757367504419,0.65606071,878.39,876.9,0.19781213]
[1757367504624,0.65606071,878.38,876.9,0.19781213]
[1757367504824,0.65606071,878.37,876.9,0.19781213]
[1757367505026,0.65606071,878.36,876.9,0.19781213]
[1757367505224,0.65606071,878.35,876.9,0.19781213]
[1757367505422,0.65606071,878.34,876.9,0.19781213]
[1757367505625,1.5320134,878.41,876.9,0.19781213]
[1757367505827,0.65604202,878.4,876.9,0.19781213]
[1757367506026,0.65604202,878.39,876.9,0.19781213]
[1757367506225,0.65604202,878.38,876.9,0.19781213]
[1757367506428,0.65604202,878.37,876.9,0.19781213]
[1757367506628,0.65604202,878.36,876.9,0.19781213]
[1757367506829,0.65604202,878.35,876.9,0.19781213]
[1757367507028,0.65604202,878.34,876.9,0.19781213]
[1757367507226,1.5320134,878.41,876.9,0.19781213]
[1757367507528,2.18804291,878.4,876.9,0.19781213]
[1757367507725,0.65602951,878.39,876.9,0.19781213]
[1757367507931,0.65602951,878.38,876.9,0.19781213]
[1757367508127,0.65602951,878.37,876.9,0.19781213]
[1757367508430,0.65602951,878.36,876.9,0.19781213]
[1757367508630,0.65602951,878.35,876.9,0.19781213]
[1757367508831,0.65602951,878.34,876.9,0.19781213]
[1757367509026,1.5320134,878.37,876.9,0.19781213]
[1757367509231,0.65540211,878.36,876.9,0.19781213]
[1757367509533,0.65540211,878.35,876.9,0.19781213]
[1757367509832,1.5320134,878.39,876.9,0.19781213]
[1757367510030,0.65539016,878.38,876.9,0.19781213]
[1757367510237,1.5320134,878.35,876.9,0.19781213]
[1757367515338,1.5320134,878.41,876.9,0.19781213]
[1757367515539,0.65909453,878.4,876.9,0.19781213]
[1757367515839,1.5320134,878.53,876.9,0.19781213]
[1757367516037,0.65907771,878.52,876.9,0.19781213]
[1757367516338,0.65907771,878.51,876.9,0.19781213]
[1757367516538,0.65907771,878.5,876.9,0.19781213]
[1757367516837,0.65907771,878.49,876.9,0.19781213]
[1757367517036,0.65907771,878.48,876.9,0.19781213]
[1757367517235,0.65907771,878.47,876.9,0.19781213]
[1757367517439,0.65907771,878.46,876.9,0.19781213]
[1757367517639,0.65907771,878.45,876.9,0.19781213]
[1757367517840,1.5320134,878.72,876.9,0.19781213]
[1757367518040,0.65886086,878.71,876.9,0.19781213]
[1757367518340,0.65886086,878.7,876.9,0.19781213]
[1757367518640,0.65886086,878.69,876.9,0.19781213]
[1757367518939,0.65886086,878.68,876.9,0.19781213]
[1757367519140,0.65886086,878.67,876.9,0.19781213]
[1757367519336,0.65886086,878.66,876.9,0.19781213]
[1757367519538,0.65886086,878.65,876.9,0.19781213]
[1757367519840,0.65886086,878.64,876.9,0.19781213]
[1757367520039,0.65886086,878.63,876.9,0.19781213]
[1757367520239,0.65886086,878.62,876.9,0.19781213]
[1757367520436,0.65886086,878.61,876.9,0.19781213]
[1757367520636,0.65886086,878.6,876.9,0.19781213]
[1757367520841,0.65886086,878.59,876.9,0.19781213]
[1757367521042,0.65886086,878.58,876.9,0.19781213]
[1757367521242,0.65886086,878.57,876.9,0.19781213]
[1757367521541,0.65886086,878.56,876.9,0.19781213]
[1757367521738,0.65886086,878.55,876.9,0.19781213]
[1757367521937,0.65886086,878.54,876.9,0.19781213]
[1757367522139,0.65886086,878.53,876.9,0.19781213]
[1757367522440,0.65886086,878.52,876.9,0.19781213]
[1757367522645,0.65886086,878.51,876.9,0.19781213]
[1757367522841,0.65886086,878.5,876.9,0.19781213]
[1757367523043,1.5320134,878.76,876.9,0.19781213]
[1757367523246,0.65820463,878.75,876.9,0.19781213]
[1757367523540,0.65820463,878.74,876.9,0.19781213]
[1757367523844,0.65820463,878.73,876.9,0.19781213]
[1757367524040,0.65820463,878.72,876.9,0.19781213]
[1757367524243,0.65820463,878.71,876.9,0.19781213]
[1757367524541,0.65820463,878.7,876.9,0.19781213]
[1757367524743,0.65820463,878.69,876.9,0.19781213]
[1757367524942,0.65820463,878.68,876.9,0.19781213]
[1757367525140,0.65820463,878.67,876.9,0.19781213]
[1757367525343,0.65820463,878.66,876.9,0.19781213]
[1757367525541,0.65820463,878.65,876.9,0.19781213]
[1757367525743,0.65820463,878.64,876.9,0.19781213]
[1757367525944,0.65820463,878.63,876.9,0.19781213]
[1757367526145,0.65820463,878.62,876.9,0.19781213]
[1757367526343,0.65820463,878.61,876.9,0.19781213]
[1757367526542,0.65820463,878.6,876.9,0.19781213]
[1757367526741,0.65820463,878.59,876.9,0.19781213]
[1757367526947,0.65820463,878.58,876.9,0.19781213]
[1757367527146,0.65820463,878.57,876.9,0.19781213]
[1757367527344,0.65820463,878.56,876.9,0.19781213]
[1757367527645,0.65820463,878.55,876.9,0.19781213]
[1757367527844,1.5320134,878.77,876.9,0.19781213]
[1757367527845,0.65820463,878.54,876.9,0.19781213]
[1757367528042,0.65820463,878.53,876.9,0.19781213]
[1757367528247,0.65820463,878.52,876.9,0.19781213]
[1757367528441,0.65820463,878.51,876.9,0.19781213]
[1757367528747,0.65820463,878.5,876.9,0.19781213]
[1757367528948,1.5320134,878.77,876.9,0.19781213]
[1757367529148,0.65779493,878.76,876.9,0.19781213]
[1757367529348,0.65779493,878.75,876.9,0.19781213]
[1757367529546,0.65779493,878.74,876.9,0.19781213]
[1757367529745,0.65779493,878.73,876.9,0.19781213]
[1757367529948,0.65779493,878.72,876.9,0.19781213]
[1757367530147,0.65779493,878.71,876.9,0.19781213]
[1757367530346,0.65779493,878.7,876.9,0.19781213]
[1757367530648,0.65779493,878.69,876.9,0.19781213]
[1757367530949,0.65779493,878.68,876.9,0.19781213]
[1757367531151,0.65779493,878.67,876.9,0.19781213]
[1757367531350,0.65779493,878.66,876.9,0.19781213]
[1757367531550,0.65779493,878.65,876.9,0.19781213]
[1757367531751,0.65779493,878.64,876.9,0.19781213]
[1757367531950,0.65779493,878.63,876.9,0.19781213]
[1757367532147,0.65779493,878.62,876.9,0.19781213]
[1757367532352,0.65779493,878.61,876.9,0.19781213]
[1757367532549,0.65779493,878.6,876.9,0.19781213]
[1757367532849,0.65779493,878.59,876.9,0.19781213]
[1757367533151,1.5320134,879.21,876.9,0.19781213]
[1757367533347,0.65731003,879.2,876.9,0.19781213]
[1757367533552,0.65731003,879.19,876.9,0.19781213]
[1757367533750,0.65731003,879.18,876.9,0.19781213]
[1757367534050,0.65731003,879.17,876.9,0.19781213]
[1757367534253,0.65731003,879.16,876.9,0.19781213]
[1757367534450,0.65731003,879.15,876.9,0.19781213]
[1757367534649,0.65731003,879.14,876.9,0.19781213]
[1757367534853,0.65731003,879.13,876.9,0.19781213]
[1757367535053,0.65731003,879.12,876.9,0.19781213]
[1757367535250,0.65731003,879.11,876.9,0.19781213]
[1757367535562,0.65731003,879.1,876.9,0.19781213]
[1757367535754,0.65731003,879.09,876.9,0.19781213]
[1757367535953,0.65731003,879.08,876.9,0.19781213]
[1757367536149,0.65731003,879.07,876.9,0.19781213]
[1757367536350,0.65731003,879.06,876.9,0.19781213]
[1757367536554,0.65731003,879.05,876.9,0.19781213]
[1757367536752,0.65731003,879.04,876.9,0.19781213]
[1757367536951,0.65731003,879.03,876.9,0.19781213]
[1757367537154,0.65731003,879.02,876.9,0.19781213]
[1757367537351,0.65731003,879.01,876.9,0.19781213]
[1757367537556,0.65731003,879.0,876.9,0.19781213]
[1757367537753,0.65731003,878.99,876.9,0.19781213]
[1757367537957,0.65731003,878.98,876.9,0.19781213]
[1757367538155,0.65731003,878.97,876.9,0.19781213]
[1757367538352,0.65731003,878.96,876.9,0.19781213]
[1757367538554,0.65731003,878.95,876.9,0.19781213]
[1757367538754,0.65731003,878.94,876.9,0.19781213]
[1757367538957,0.65731003,878.93,876.9,0.19781213]
[1757367539252,0.65731003,878.92,876.9,0.19781213]
[1757367539457,0.65731003,878.91,876.9,0.19781213]
[1757367539656,0.65731003,878.9,876.9,0.19781213]
[1757367539854,0.65731003,878.89,876.9,0.19781213]
[1757367540058,0.65731003,878.88,876.9,0.19781213]
[1757367540363,0.65731003,878.87,876.9,0.19781213]
[1757367540658,0.65731003,878.86,876.9,0.19781213]
[1757367540955,1.5320134,878.8,876.9,0.19781213]
[1757367541258,0.65731003,878.79,876.9,0.19781213]
[1757367541558,0.65731003,878.78,876.9,0.19781213]
[1757367541753,0.65731003,878.77,876.9,0.19781213]
[1757367541957,0.65731003,878.76,876.9,0.19781213]
[1757367542154,0.65731003,878.75,876.9,0.19781213]
[1757367542473,0.65731003,878.74,876.9,0.19781213]
[1757367542654,0.65731003,878.73,876.9,0.19781213]
[1757367542857,0.65731003,878.72,876.9,0.19781213]
[1757367543060,0.65731003,878.71,876.9,0.19781213]
[1757367543260,0.65731003,878.7,876.9,0.19781213]
[1757367543556,0.65731003,878.69,876.9,0.19781213]
[1757367543760,0.65731003,878.68,876.9,0.19781213]
[1757367543960,0.65731003,878.67,876.9,0.19781213]
[1757367544157,0.65731003,878.66,876.9,0.19781213]
[1757367544357,0.65731003,878.65,876.9,0.19781213]
[1757367544561,0.65731003,878.64,876.9,0.19781213]
[1757367544861,0.65731003,878.63,876.9,0.19781213]
[1757367545161,0.65731003,878.62,876.9,0.19781213]
[1757367545461,0.65731003,878.61,876.9,0.19781213]
[1757367545660,0.65731003,878.6,876.9,0.19781213]
[1757367545858,0.65731003,878.59,876.9,0.19781213]
[1757367546062,1.5320134,878.81,876.9,0.19781213]
[1757367546358,0.65606185,878.8,876.9,0.19781213]
[1757367546556,0.65606185,878.79,876.9,0.19781213]
[1757367546759,0.65606185,878.78,876.9,0.19781213]
[1757367546957,0.65606185,878.77,876.9,0.19781213]
[1757367547260,0.65606185,878.76,876.9,0.19781213]
[1757367547458,0.65606185,878.75,876.9,0.19781213]
[1757367547661,0.65606185,878.74,876.9,0.19781213]
[1757367547958,1.5320134,878.62,876.9,0.19781213]
[1757367548157,0.65606185,878.61,876.9,0.19781213]
[1757367548360,0.65606185,878.6,876.9,0.19781213]
[1757367548660,0.65606185,878.59,876.9,0.19781213]
[1757367548961,1.5320134,878.62,876.9,0.19781213]
[1757367549263,0.65601521,878.61,876.9,0.19781213]
[1757367549561,0.65601521,878.6,876.9,0.19781213]
[1757367549858,0.65601521,878.59,876.9,0.19781213]
[1757367550158,1.5320134,878.6,876.9,0.19781213]
[1757367550358,0.65601564,878.59,876.9,0.19781213]
[1757367550563,1.5320134,878.6,876.9,0.19781213]
[1757367550765,0.65600513,878.59,876.9,0.19781213]
[1757367550961,1.5320134,878.6,876.9,0.19781213]
[1757367551164,0.65600513,878.59,876.9,0.19781213]
[1757367551465,1.5320134,878.6,876.9,0.19781213]
[1757367551759,0.65600554,878.59,876.9,0.19781213]
[1757367551959,1.5320134,878.6,876.9,0.19781213]
[1757367552160,0.65600554,878.59,876.9,0.19781213]
[1757367552358,1.5320134,878.6,876.9,0.19781213]
[1757367552560,0.6560101,878.59,876.9,0.19781213]
[1757367552759,1.5320134,878.6,876.9,0.19781213]
[1757367552964,1.5320134,879.0,876.9,0.19781213]
[1757367553163,0.65599876,878.99,876.9,0.19781213]
[1757367553366,0.65599876,878.98,876.9,0.19781213]
[1757367553664,0.65599876,878.97,876.9,0.19781213]
[1757367553862,0.65599876,878.96,876.9,0.19781213]
[1757367554062,0.65599876,878.95,876.9,0.19781213]
[1757367554261,0.65599876,878.94,876.9,0.19781213]
[1757367554461,0.65599876,878.93,876.9,0.19781213]
[1757367554665,0.65599876,878.92,876.9,0.19781213]
[1757367554961,0.65599876,878.91,876.9,0.19781213]
[1757367555166,0.65599876,878.9,876.9,0.19781213]
[1757367555462,0.65599876,878.89,876.9,0.19781213]
[1757367555665,0.65599876,878.88,876.9,0.19781213]
[1757367555861,0.65599876,878.87,876.9,0.19781213]
[1757367556161,0.65599876,878.86,876.9,0.19781213]
[1757367556364,0.65599876,878.85,876.9,0.19781213]
[1757367556566,0.65599876,878.84,876.9,0.19781213]
[1757367556763,0.65599876,878.83,876.9,0.19781213]
[1757367556962,0.65599876,878.82,876.9,0.19781213]
[1757367557163,0.65599876,878.81,876.9,0.19781213]
[1757367557363,0.65599876,878.8,876.9,0.19781213]
[1757367557666,0.65599876,878.79,876.9,0.19781213]
[1757367557862,0.65599876,878.78,876.9,0.19781213]
[1757367558066,0.65599876,878.77,876.9,0.19781213]
[1757367558265,0.65599876,878.76,876.9,0.19781213]
[1757367558567,0.65599876,878.75,876.9,0.19781213]
[1757367558766,0.65599876,878.74,876.9,0.19781213]
[1757367558967,0.65599876,878.73,876.9,0.19781213]
[1757367559164,0.65599876,878.72,876.9,0.19781213]
[1757367559364,0.65599876,878.71,876.9,0.19781213]
[1757367559563,0.65599876,878.7,876.9,0.19781213]
[1757367559763,0.65599876,878.69,876.9,0.19781213]
[1757367560066,0.65599876,878.68,876.9,0.19781213]
[1757367560264,0.65599876,878.67,876.9,0.19781213]
[1757367560467,0.65599876,878.66,876.9,0.19781213]
[1757367560664,0.65599876,878.65,876.9,0.19781213]
[1757367560868,0.65599876,878.64,876.9,0.19781213]
[1757367561166,0.65599876,878.63,876.9,0.19781213]
[1757367561367,0.65599876,878.62,876.9,0.19781213]
[1757367561565,0.65599876,878.61,876.9,0.19781213]
[1757367561770,1.5320134,878.99,876.9,0.19781213]
[1757367561964,0.65617136,878.98,876.9,0.19781213]
[1757367562167,0.65617136,878.97,876.9,0.19781213]
[1757367562366,0.65617136,878.96,876.9,0.19781213]
[1757367562567,0.65617136,878.95,876.9,0.19781213]
[1757367562768,1.5320134,878.76,876.9,0.19781213]
[1757367562970,0.65617136,878.75,876.9,0.19781213]
[1757367563169,0.65617136,878.74,876.9,0.19781213]
[1757367563367,1.5320134,878.66,876.9,0.19781213]
[1757367563566,0.65617136,878.65,876.9,0.19781213]
[1757367563868,2.18818476,878.64,876.9,0.19781213]
[1757367564070,0.65617136,878.63,876.9,0.19781213]
[1757367564271,0.65617136,878.62,876.9,0.19781213]
[1757367564576,0.65617136,878.61,876.9,0.19781213]
[1757367564768,1.5320134,878.64,876.9,0.19781213]
[1757367564967,0.65629973,878.63,876.9,0.19781213]
[1757367565169,0.65629973,878.62,876.9,0.19781213]
[1757367565370,0.65629973,878.61,876.9,0.19781213]
[1757367565567,1.5320134,878.64,876.9,0.19781213]
[1757367565771,0.65635185,878.63,876.9,0.19781213]
[1757367565969,0.65635185,878.62,876.9,0.19781213]
[1757367566171,0.65635185,878.61,876.9,0.19781213]
[1757367566370,1.5320134,878.63,876.9,0.19781213]
[1757367566569,2.18842355,878.62,876.9,0.19781213]
[1757367566773,0.65641015,878.61,876.9,0.19781213]
[1757367567071,1.5320134,878.62,876.9,0.19781213]
[1757367567281,0.65641015,878.61,876.9,0.19781213]
[1757367567473,1.5320134,878.62,876.9,0.19781213]
[1757367567670,0.65647536,878.61,876.9,0.19781213]
[1757367567870,1.5320134,878.62,876.9,0.19781213]
[1757367568171,0.65647536,878.61,876.9,0.19781213]
[1757367568373,1.5320134,878.61,876.9,0.19781213]
[1757367570573,1.5320134,878.74,876.9,0.19781213]
[1757367570774,0.65675958,878.73,876.9,0.19781213]
[1757367570975,0.65675958,878.72,876.9,0.19781213]
[1757367571173,0.65675958,878.71,876.9,0.19781213]
[1757367571375,0.65675958,878.7,876.9,0.19781213]
[1757367571576,0.65675958,878.69,876.9,0.19781213]
[1757367571876,0.65675958,878.68,876.9,0.19781213]
[1757367572076,0.65675958,878.67,876.9,0.19781213]
[1757367572272,0.65675958,878.66,876.9,0.19781213]
[1757367572476,0.65675958,878.65,876.9,0.19781213]
[1757367572777,0.65675958,878.64,876.9,0.19781213]
[1757367572971,0.65675958,878.63,876.9,0.19781213]
[1757367573175,0.65675958,878.62,876.9,0.19781213]
[1757367573378,0.65675958,878.61,876.9,0.19781213]
[1757367573577,1.5320134,878.72,876.9,0.19781213]
[1757367573777,0.6570705,878.71,876.9,0.19781213]
[1757367573978,0.6570705,878.7,876.9,0.19781213]
[1757367574276,0.6570705,878.69,876.9,0.19781213]
[1757367574474,0.6570705,878.68,876.9,0.19781213]
[1757367574774,0.6570705,878.67,876.9,0.19781213]
[1757367574972,0.6570705,878.66,876.9,0.19781213]
[1757367575175,0.6570705,878.65,876.9,0.19781213]
[1757367575478,0.6570705,878.64,876.9,0.19781213]
[1757367575774,0.6570705,878.63,876.9,0.19781213]
[1757367575973,0.6570705,878.62,876.9,0.19781213]
[1757367576173,0.6570705,878.61,876.9,0.19781213]
[1757367576377,1.5320134,878.69,876.9,0.19781213]
[1757367576577,0.65744659,878.68,876.9,0.19781213]
[1757367576874,0.65744659,878.67,876.9,0.19781213]
[1757367577074,0.65744659,878.66,876.9,0.19781213]
[1757367577377,0.65744659,878.65,876.9,0.19781213]
[1757367577575,0.65744659,878.64,876.9,0.19781213]
[1757367577774,0.65744659,878.63,876.9,0.19781213]
[1757367578078,0.65744659,878.62,876.9,0.19781213]
[1757367578279,0.65744659,878.61,876.9,0.19781213]
[1757367578474,1.5320134,878.68,876.9,0.19781213]
[1757367578676,0.65760535,878.67,876.9,0.19781213]
[1757367578875,0.65760535,878.66,876.9,0.19781213]
[1757367579080,0.65760535,878.65,876.9,0.19781213]
[1757367579278,1.5320134,878.68,876.9,0.19781213]
[1757367579279,1.5320134,878.61,876.9,0.19781213]
[1757367590590,1.5320134,878.62,876.9,0.19781213]
[1757367600198,0.65796701,878.61,876.9,0.19781213]
[1757367600499,0.65796701,878.6,876.9,0.19781213]
[1757367600704,0.65796701,878.59,876.9,0.19781213]
[1757367600999,1.5320134,879.1,876.9,0.19781213]
[1757367601202,0.65792393,879.09,876.9,0.19781213]
[1757367601502,0.65792393,879.08,876.9,0.19781213]
[1757367601702,1.5320134,879.02,876.9,0.19781213]
[1757367602003,0.65792393,879.01,876.9,0.19781213]
[1757367602199,0.65792393,879.0,876.9,0.19781213]
[1757367602502,0.65792393,878.99,876.9,0.19781213]
[1757367602702,0.65792393,878.98,876.9,0.19781213]
[1757367602903,0.65792393,878.97,876.9,0.19781213]
[1757367603203,0.65792393,878.96,876.9,0.19781213]
[1757367603403,0.65792393,878.95,876.9,0.19781213]
[1757367603600,0.65792393,878.94,876.9,0.19781213]
[1757367603904,1.5320134,879.03,876.9,0.19781213]
[1757367603905,0.65792393,878.93,876.9,0.19781213]
[1757367604102,0.65792393,878.92,876.9,0.19781213]
[1757367604303,0.65792393,878.91,876.9,0.19781213]
[1757367604506,0.65792393,878.9,876.9,0.19781213]
[1757367604705,0.65792393,878.89,876.9,0.19781213]
[1757367604905,0.65792393,878.88,876.9,0.19781213]
[1757367605103,0.65792393,878.87,876.9,0.19781213]
[1757367605404,0.65792393,878.86,876.9,0.19781213]
[1757367605608,0.65792393,878.85,876.9,0.19781213]
[1757367605805,0.65792393,878.84,876.9,0.19781213]
[1757367606009,0.65792393,878.83,876.9,0.19781213]
[1757367606310,0.65792393,878.82,876.9,0.19781213]
[1757367606508,0.65792393,878.81,876.9,0.19781213]
[1757367606707,0.65792393,878.8,876.9,0.19781213]
[1757367606911,0.65792393,878.79,876.9,0.19781213]
[1757367607110,0.65792393,878.78,876.9,0.19781213]
[1757367607409,0.65792393,878.77,876.9,0.19781213]
[1757367607603,0.65792393,878.76,876.9,0.19781213]
[1757367607805,0.65792393,878.75,876.9,0.19781213]
[1757367608106,0.65792393,878.74,876.9,0.19781213]
[1757367608409,0.65792393,878.73,876.9,0.19781213]
[1757367608607,0.65792393,878.72,876.9,0.19781213]
[1757367608806,0.65792393,878.71,876.9,0.19781213]
[1757367609004,0.65792393,878.7,876.9,0.19781213]
[1757367609208,0.65792393,878.69,876.9,0.19781213]
[1757367609408,1.5320134,878.9,876.9,0.19781213]
[1757367609409,1.5320134,878.91,876.9,0.19781213]
[1757367609712,2.18943418,878.9,876.9,0.19781213]
[1757367609914,0.65742078,878.89,876.9,0.19781213]
[1757367610107,0.65742078,878.88,876.9,0.19781213]
[1757367610410,0.65742078,878.87,876.9,0.19781213]
[1757367610709,0.65742078,878.86,876.9,0.19781213]
[1757367610909,1.5320134,878.77,876.9,0.19781213]
[1757367611123,1.5320134,878.7,876.9,0.19781213]
[1757367611320,0.65742078,878.69,876.9,0.19781213]
[1757367611618,1.5320134,878.71,876.9,0.19781213]
[1757367611814,0.65737065,878.7,876.9,0.19781213]
[1757367612013,0.65737065,878.69,876.9,0.19781213]
[1757367612210,1.5320134,878.71,876.9,0.19781213]
[1757367612510,0.65734993,878.7,876.9,0.19781213]
[1757367612710,0.65734993,878.69,876.9,0.19781213]
[1757367612910,1.5320134,878.73,876.9,0.19781213]
[1757367613112,0.65734993,878.72,876.9,0.19781213]
[1757367613314,0.65734993,878.71,876.9,0.19781213]
[1757367613513,0.65734993,878.7,876.9,0.19781213]
[1757367613711,0.65734993,878.69,876.9,0.19781213]
[1757367613917,1.5320134,878.73,876.9,0.19781213]
[1757367614114,0.65732674,878.72,876.9,0.19781213]
[1757367614312,0.65732674,878.71,876.9,0.19781213]
[1757367614515,0.65732674,878.7,876.9,0.19781213]
[1757367614713,0.65732674,878.69,876.9,0.19781213]
[1757367614915,1.5320134,878.73,876.9,0.19781213]
[1757367615117,0.65730654,878.72,876.9,0.19781213]
[1757367615416,0.65730654,878.71,876.9,0.19781213]
[1757367615717,0.65730654,878.7,876.9,0.19781213]
[1757367616015,2.18931994,878.69,876.9,0.19781213]
[1757367616211,1.5320134,878.69,876.9,0.19781213]
[1757367618913,1.5320134,878.7,876.9,0.19781213]
[1757367620918,2.18922042,878.69,876.9,0.19781213]
[1757367621119,1.5320134,878.69,876.9,0.19781213]
[1757367639128,1.5320134,878.74,876.9,0.19781213]
[1757367639329,0.65665771,878.73,876.9,0.19781213]
[1757367639640,0.65665771,878.72,876.9,0.19781213]